bitfinex/quotes_ETHUSD_20250904
["timestamp","ask_amount","ask_price","bid_price","bid_amount"]
[1757020477867,4.34952103,4314.0,4313.2,2.31844519]
[1757020478107,0.49952103,4313.9,4313.2,2.31844519]
[1757020478398,4.34852103,4313.8,4313.1,2.31851481]
[1757020478598,0.116,4313.2,4313.1,2.31851481]
[1757020478816,0.61552103,4313.2,4313.1,2.62151481]
[1757020479771,0.61552103,4313.2,4313.1,3.17931481]
[1757020479971,0.61552103,4313.2,4313.1,0.303]
[1757020480230,0.61552103,4313.2,4313.1,0.7383]
[1757020483775,0.61552103,4313.2,4313.1,0.303]
[1757020484103,0.61552103,4313.2,4313.1,0.7383]
[1757020484285,0.61552103,4313.2,4313.1,0.303]
[1757020484676,0.61552103,4313.2,4313.1,0.7383]
[1757020485088,0.61552103,4313.2,4312.8,0.025]
[1757020485287,0.116,4312.9,4312.3,0.4353]
[1757020485490,0.116,4312.4,4312.3,0.4353]
[1757020485690,0.61552103,4312.4,4312.3,0.4353]
[1757020485877,0.61552103,4312.4,4312.3,0.7383]
[1757020486082,0.61552103,4312.4,4312.3,0.303]
[1757020486286,6.78441538,4312.4,4312.3,0.303]
[1757020486580,4.46552103,4312.4,4312.3,0.303]
[1757020489575,4.46552103,4312.4,4311.8,0.025]
[1757020489890,4.46552103,4312.4,4311.9,0.4353]
[1757020489891,0.116,4312.1,4311.9,0.4353]
[1757020490213,0.49952103,4312.0,4311.9,0.4353]
[1757020490509,0.49952103,4312.0,4311.9,0.7383]
[1757020490806,2.81863049,4312.0,4311.9,0.37560391]
[1757020491007,2.81863049,4312.0,4311.9,0.07260391]
[1757020491216,3.63413049,4312.0,4311.9,0.07260391]
[1757020491506,4.08313049,4312.0,4311.9,0.07260391]
[1757020491905,3.63413049,4312.0,4311.9,0.07260391]
[1757020492104,3.31813049,4312.0,4311.9,0.07260391]
[1757020492682,2.31916324,4311.9,4311.8,0.025]
[1757020492881,6.67368427,4311.9,4311.8,0.09760891]
[1757020493110,6.67368427,4311.9,4311.8,0.40060891]
[1757020493409,4.35452103,4311.9,4311.8,0.40060891]
[1757020493598,6.67368427,4311.9,4311.8,0.40060891]
[1757020494310,4.35452103,4311.9,4311.8,0.40060891]
[1757020494508,6.67368427,4311.9,4311.8,0.09760891]
[1757020494708,7.48918427,4311.9,4311.8,0.09760891]
[1757020495013,7.48918427,4311.9,4311.8,0.025]
[1757020495410,7.17318427,4311.9,4311.8,0.025]
[1757020497084,7.93818427,4311.9,4311.8,0.025]
[1757020498119,6.67368427,4311.9,4311.8,0.025]
[1757020498416,2.81868427,4311.9,4311.8,0.328]
[1757020498599,6.67268427,4311.9,4311.8,0.328]
[1757020498790,6.67268427,4311.9,4311.8,0.029]
[1757020498996,2.81868427,4311.9,4311.8,0.332]
[1757020499201,6.67268427,4311.9,4311.8,0.332]
[1757020499615,4.35352103,4311.9,4311.8,0.332]
[1757020499799,4.35352103,4311.9,4311.8,0.7673]
[1757020499991,0.49952103,4311.9,4311.8,0.7673]
[1757020500192,4.46952103,4311.9,4311.8,0.7673]
[1757020500413,0.61552103,4311.9,4311.8,0.7673]
[1757020500788,0.61552103,4311.9,4311.8,0.8898]
[1757020500995,0.61552103,4311.9,4311.8,0.96240554]
[1757020501723,0.61552103,4311.9,4311.8,0.8898]
[1757020501919,0.49952103,4311.9,4311.8,3.6025398]
[1757020502124,0.49952103,4311.9,4311.8,0.83990537]
[1757020502294,0.49952103,4311.9,4311.8,0.96240537]
[1757020502489,0.49952103,4311.9,4311.8,3.2816224]
[1757020502697,0.116,4312.2,4312.1,2.31905568]
[1757020503014,0.001,4312.8,4312.7,2.31873304]
[1757020503215,0.49966884,4312.8,4312.7,3.25213841]
[1757020503420,0.001,4312.8,4312.7,3.25213841]
[1757020503735,0.001,4312.8,4312.7,3.36813841]
[1757020504255,0.001,4313.7,4313.6,2.31824925]
[1757020504541,0.001,4313.7,4313.6,6.63827122]
[1757020504748,0.001,4313.7,4313.6,10.97177122]
[1757020504908,1e-08,4313.8,4313.7,6.11019551]
[1757020505274,1e-08,4313.8,4313.7,6.66799551]
[1757020505411,1e-08,4313.8,4313.7,6.97099551]
[1757020505745,1e-08,4313.8,4313.7,9.23890348]
[1757020506105,0.001,4315.3,4313.7,9.23890348]
[1757020506106,0.001,4315.3,4315.2,3.10938969]
[1757020506356,0.001,4315.3,4315.2,11.82556358]
[1757020506492,0.001,4315.3,4315.2,12.66318969]
[1757020506698,0.001,4316.4,4315.8,6.10906751]
[1757020506914,0.001,4316.4,4315.8,10.58897426]
[1757020507138,0.001,4316.4,4315.8,11.56577426]
[1757020507507,0.001,4316.4,4315.8,11.63827854]
[1757020507830,0.001,4317.6,4316.7,6.10858442]
[1757020508003,0.001,4317.6,4316.7,11.7600887]
[1757020508204,0.001,4317.6,4316.7,14.02856457]
[1757020508930,0.001,4317.6,4316.7,14.14456457]
[1757020510135,0.001,4317.6,4316.7,14.14356457]
[1757020510430,0.001,4317.6,4316.7,14.1435619]
[1757020511141,0.001,4317.6,4317.5,6.10815518]
[1757020511340,0.001,4317.6,4317.5,11.68515518]
[1757020511557,0.001,4317.6,4317.5,12.74974133]
[1757020512415,0.026,4317.8,4317.5,12.74974133]
[1757020512416,1e-08,4317.8,4317.7,2.31604789]
[1757020512642,1e-08,4318.1,4317.8,0.792]
[1757020512839,0.11479423,4321.1,4317.8,0.792]
[1757020512840,0.09282821,4320.3,4318.2,0.792]
[1757020512997,0.116,4320.7,4319.1,0.792]
[1757020513198,0.025,4320.8,4320.2,0.3103]
[1757020513397,0.025,4320.8,4320.3,1.708]
[1757020513614,0.025,4320.8,4320.3,5.592]
[1757020514027,0.025,4320.8,4320.7,2.62473978]
[1757020514241,0.9655,4320.7,4320.3,4.02260733]
[1757020514538,0.025,4320.8,4320.0,3.892]
[1757020514539,0.2895,4320.4,4320.0,3.892]
[1757020514728,0.025,4320.8,4320.3,0.3103]
[1757020514932,0.4692,4320.7,4320.4,3.898]
[1757020515112,0.2895,4320.5,4320.4,3.898]
[1757020515311,0.7858,4320.5,4320.4,3.898]
[1757020515511,0.025,4320.8,4320.4,3.898]
[1757020515737,0.2895,4320.5,4319.5,1.708]
[1757020515939,0.9655,4320.4,4319.6,3.897]
[1757020516114,3.28010049,4320.4,4319.6,3.897]
[1757020517156,2.31447526,4320.7,4318.9,1.707]
[1757020517157,0.2895,4319.7,4318.9,1.707]
[1757020517445,0.4963,4319.9,4319.0,6.21130362]
[1757020517743,0.9655,4319.9,4319.1,2.31529566]
[1757020518114,0.9655,4319.9,4319.2,2.31524125]
[1757020518338,0.9655,4319.9,4319.0,3.896]
[1757020519037,0.4963,4320.4,4319.1,0.4433]
[1757020519337,0.4963,4320.4,4319.8,2.62519505]
[1757020519515,0.4692,4320.6,4319.8,2.62519505]
[1757020519516,0.4692,4320.6,4319.9,3.898]
[1757020519711,2.7837024,4320.6,4319.9,3.898]
[1757020519907,2.31454844,4320.5,4319.9,3.898]
[1757020520137,0.2895,4320.0,4319.7,1.707]
[1757020520306,0.2895,4320.0,4319.8,3.898]
[1757020523022,0.9655,4319.9,4319.7,1.707]
[1757020523222,0.7858,4319.8,4319.7,1.707]
[1757020524244,1.255,4319.8,4319.7,1.707]
[1757020525112,0.116,4319.9,4319.7,1.707]
[1757020525719,1.0815,4320.2,4319.7,1.707]
[1757020525919,0.4963,4320.1,4319.7,1.707]
[1757020526321,0.116,4320.2,4320.0,0.3103]
[1757020526517,0.116,4320.2,4320.1,3.896]
[1757020526846,0.4963,4320.2,4320.1,3.896]
[1757020527035,0.5852,4320.5,4320.1,3.896]
[1757020527231,0.2895,4320.2,4320.1,3.896]
[1757020527544,0.7858,4320.2,4320.1,3.896]
[1757020528644,1.255,4320.2,4319.9,0.116]
[1757020528855,0.2895,4320.2,4320.1,3.896]
[1757020529330,0.78077824,4320.2,4320.1,3.896]
[1757020529536,1.74627824,4320.2,4319.7,1.823]
[1757020529717,1.74627824,4320.2,4318.9,1.707]
[1757020529718,2.31511235,4319.5,4318.9,1.707]
[1757020529917,0.2895,4319.0,4318.9,5.548]
[1757020530155,3.09625926,4319.0,4318.9,5.548]
[1757020530329,4.06175926,4319.0,4318.9,1.707]
[1757020530844,2.31540438,4318.9,4318.8,0.025]
[1757020531035,2.80681287,4318.9,4318.8,0.025]
[1757020531240,4.06181287,4318.9,4318.8,0.025]
[1757020532951,2.31565475,4318.5,4318.3,3.897]
[1757020533134,1.74640849,4318.4,4318.3,3.897]
[1757020533547,3.30338096,4318.4,4318.3,3.897]
[1757020533748,3.30338096,4318.4,4318.1,1.706]
[1757020533749,2.31577972,4318.2,4318.1,5.604]
[1757020533920,4.06218821,4318.2,4318.1,5.604]
[1757020534267,4.06218821,4318.2,4317.8,3.923]
[1757020534462,0.49140849,4318.1,4317.8,3.923]
[1757020534624,0.49140849,4318.0,4317.8,3.923]
[1757020534823,0.49140849,4317.9,4317.8,3.923]
[1757020535057,0.49140849,4317.9,4317.8,4.2373]
[1757020535966,0.78090849,4317.9,4317.8,3.927]
[1757020536168,2.93724601,4317.9,4317.8,3.927]
[1757020536677,3.40644601,4317.9,4317.8,0.029]
[1757020536981,3.40644601,4317.9,4317.4,0.004]
[1757020536982,2.31615518,4317.5,4317.4,0.004]
[1757020537136,2.80756367,4317.5,4317.4,0.004]
[1757020537337,4.06256367,4317.5,4317.4,0.004]
[1757020538985,4.06850922,4317.5,4317.4,0.004]
[1757020539683,4.18450922,4317.5,4317.4,0.004]
[1757020541637,2.31626304,4317.3,4316.8,1e-08]
[1757020541839,5.31620882,4317.4,4315.8,0.025]
[1757020541840,2.31696014,4316.0,4315.8,0.025]
[1757020542066,10.12196787,4315.9,4315.8,0.025]
[1757020542447,11.06096787,4315.9,4315.8,0.025]
[1757020542856,2.31737365,4315.3,4314.8,0.224]
[1757020543048,0.61335404,4315.2,4314.8,0.224]
[1757020543253,0.49735404,4315.1,4314.8,0.224]
[1757020543452,0.49735404,4315.0,4314.8,0.224]
[1757020543654,0.116,4315.2,4314.9,0.292]
[1757020543857,0.49584767,4315.1,4314.9,0.292]
[1757020544171,0.49584767,4315.0,4314.9,0.292]
[1757020545364,0.49584767,4315.0,4314.8,0.224]
[1757020545555,0.49584767,4314.9,4314.8,0.224]
[1757020545954,0.78844767,4314.9,4314.8,0.025]
[1757020546157,0.49584767,4314.9,4314.8,0.025]
[1757020546748,0.49584767,4314.9,4314.8,0.317]
[1757020547375,0.49584767,4314.9,4314.8,0.025]
[1757020550178,0.49584767,4314.9,4314.8,0.317]
[1757020552256,0.49584767,4314.9,4314.8,0.321]
[1757020552675,0.49584767,4314.9,4314.8,2.63860452]
[1757020552987,0.49584767,4314.9,4314.8,5.70264127]
[1757020553196,0.116,4315.6,4314.9,2.31755081]
[1757020553375,0.96742047,4315.5,4314.9,2.31755081]
[1757020553574,0.96742047,4315.5,4315.0,3.921]
[1757020553575,0.116,4315.3,4315.0,3.921]
[1757020553752,0.49452047,4315.2,4315.0,6.23849515]
[1757020553954,0.116,4315.3,4315.1,0.292]
[1757020554177,0.49453656,4315.2,4315.0,3.921]
[1757020554379,0.49453656,4315.1,4315.0,3.921]
[1757020554781,0.78713656,4315.1,4315.0,3.921]
[1757020554984,1.72613656,4315.1,4315.0,3.921]
[1757020555453,1.25323656,4315.1,4315.0,3.921]
[1757020555685,0.49453656,4315.1,4315.0,4.213]
[1757020556602,0.49453656,4315.1,4315.0,6.5304971]
[1757020557303,0.49453656,4315.1,4315.0,4.213]
[1757020557855,0.49453656,4315.1,4315.0,6.5304971]
[1757020558386,0.49453656,4315.1,4315.0,4.213]
[1757020558760,0.49453656,4315.1,4315.0,6.5304971]
[1757020559990,0.49453656,4315.1,4315.0,4.213]
[1757020560406,0.49453656,4315.1,4315.0,6.5304971]
[1757020560690,0.49453656,4315.1,4315.0,4.213]
[1757020560860,0.49453656,4315.1,4315.0,3.921]
[1757020561061,1.25323656,4315.1,4315.0,3.921]
[1757020561261,1.72613656,4315.1,4315.0,3.921]
[1757020563863,1.25323656,4315.1,4315.0,3.921]
[1757020564475,0.49453656,4315.1,4315.0,3.921]
[1757020564993,0.49453656,4315.1,4315.0,6.5304971]
[1757020565360,0.49453656,4315.1,4315.0,4.213]
[1757020565973,0.49453656,4315.1,4315.0,6.5304971]
[1757020570798,0.49453656,4315.1,4315.0,6.2384971]
[1757020571188,0.49453656,4315.1,4315.0,4.98490594]
[1757020571389,0.49453656,4315.1,4315.0,4.98890594]
[1757020571700,0.49453656,4315.1,4315.0,5.28700594]
[1757020571904,0.49453656,4315.1,4315.0,2.67140884]
[1757020572483,0.49453656,4315.1,4315.0,2.96950884]
[1757020572768,0.49453656,4315.1,4315.0,2.67140884]
[1757020573006,1.66473656,4315.1,4315.0,2.67140884]
[1757020573167,1.66473656,4315.1,4315.0,3.912]
[1757020573508,1.23373656,4315.1,4315.0,2.0314442]
[1757020575110,1.66473656,4315.1,4315.0,2.0314442]
[1757020575496,1.23373656,4315.1,4314.8,0.029]
[1757020575722,1.37923656,4315.0,4314.8,0.029]
[1757020576028,0.49453656,4314.9,4314.8,2.34660452]
[1757020576229,0.49453656,4314.9,4314.8,6.55170452]
[1757020579332,0.49453656,4314.9,4314.8,9.55170452]
[1757020581817,0.49453656,4314.9,4314.8,10.01980452]
[1757020582134,0.49453656,4314.9,4314.8,9.55170452]
[1757020582343,0.49453656,4314.9,4314.8,9.25360452]
[1757020582844,0.49453656,4314.9,4314.8,6.55170452]
[1757020585143,0.49453656,4314.9,4314.8,6.25360452]
[1757020586033,0.49453656,4314.9,4314.8,6.55170452]
[1757020591853,0.49453656,4314.9,4314.8,7.01980452]
[1757020592057,0.001,4315.0,4314.8,7.01980452]
[1757020592058,0.001,4315.0,4314.9,2.31755081]
[1757020592373,0.001,4315.0,4314.9,3.72732631]
[1757020592551,0.001,4315.0,4314.9,7.02542631]
[1757020592722,0.001,4315.8,4315.4,2.31728229]
[1757020593026,0.001,4315.8,4315.4,8.53291907]
[1757020593236,0.001,4315.8,4315.4,9.27594625]
[1757020593956,0.001,4315.8,4315.4,10.19444625]
[1757020594324,0.001,4315.8,4315.4,10.07844625]
[1757020594527,0.001,4315.8,4315.4,10.19444625]
[1757020595655,0.001,4315.8,4315.4,10.06794625]
[1757020596350,0.001,4315.8,4315.4,10.19444625]
[1757020596528,0.001,4315.8,4315.4,10.06794625]
[1757020598824,0.001,4315.8,4315.4,13.06794625]
[1757020600039,0.4877,4315.8,4315.4,7.60474625]
[1757020600246,0.001,4315.8,4315.4,13.03994625]
[1757020603260,0.001,4315.8,4315.4,12.61044625]
[1757020606758,0.001,4315.8,4315.4,12.29874625]
[1757020606759,0.2868,4315.5,4315.4,12.29874625]
[1757020606962,1.2327,4315.5,4315.4,11.83528229]
[1757020607256,0.001,4315.5,4315.4,12.14698229]
[1757020607561,0.7735,4315.5,4315.4,11.83528229]
[1757020607763,1.2327,4315.5,4315.4,11.83528229]
[1757020608652,0.7735,4315.5,4315.4,11.83528229]
[1757020609135,1.2327,4315.5,4315.4,11.83528229]
[1757020610558,0.7735,4315.5,4315.4,11.83528229]
[1757020611054,0.7735,4315.5,4315.4,14.20528229]
[1757020611762,0.4877,4315.5,4315.4,15.85754625]
[1757020611967,0.001,4315.5,4315.4,15.85754625]
[1757020612167,0.001,4315.5,4315.4,16.59874625]
[1757020612482,0.001,4315.5,4315.4,16.16924625]
[1757020614072,0.001,4315.5,4315.4,13.79924625]
[1757020614569,0.7735,4315.5,4315.4,7.14128229]
[1757020614867,1.2327,4315.5,4315.4,8.03728229]
[1757020615647,0.001,4315.5,4315.4,8.03728229]
[1757020615855,0.001,4315.5,4315.4,8.34898229]
[1757020616048,0.001,4315.5,4315.4,8.03728229]
[1757020618079,0.7735,4315.5,4315.4,8.03728229]
[1757020618657,0.001,4315.5,4315.4,8.34898229]
[1757020619695,0.001,4315.5,4315.4,10.20761625]
[1757020619855,0.001,4315.5,4315.4,10.63711625]
[1757020620295,0.001,4315.5,4315.4,10.20761625]
[1757020621283,0.001,4315.5,4315.4,13.63711625]
[1757020622567,0.001,4315.5,4315.4,13.72999166]
[1757020624117,0.001,4316.4,4316.2,3.10885278]
[1757020624411,0.001,4316.4,4316.2,12.13973806]
[1757020624580,0.001,4316.4,4316.2,12.45143806]
[1757020625610,1.2327,4316.3,4316.2,4.14085278]
[1757020625780,0.001,4316.3,4316.2,9.14055278]
[1757020626609,0.001,4316.3,4316.2,8.82885278]
[1757020626964,1.2327,4316.3,4316.2,8.82885278]
[1757020627196,1.2327,4316.3,4316.2,8.03785278]
[1757020630293,1.2327,4316.3,4316.2,4.14085278]
[1757020630482,1.2327,4316.3,4316.2,8.03585278]
[1757020633171,1.2327,4316.3,4316.2,4.14085278]
[1757020633377,1.2327,4316.3,4316.2,8.03485278]
[1757020647839,0.7735,4316.3,4316.2,8.03485278]
[1757020648705,0.001,4316.3,4316.2,8.32795278]
[1757020648910,0.001,4316.3,4316.2,15.23629546]
[1757020655039,0.001,4316.3,4316.2,17.94319546]
[1757020655588,0.001,4316.3,4316.2,16.90413723]
[1757020657143,0.001,4316.3,4316.2,17.19723723]
[1757020657348,0.001,4316.3,4316.2,13.90413723]
[1757020658284,0.001,4316.3,4316.2,14.19723723]
[1757020658780,0.001,4316.3,4316.2,13.90413723]
[1757020659278,0.001,4316.3,4316.2,14.20453723]
[1757020659479,0.001,4316.3,4316.2,17.10238356]
[1757020659782,0.001,4316.3,4316.2,20.69448356]
[1757020664193,0.001,4316.3,4316.2,20.56798356]
[1757020667161,0.001,4316.3,4316.2,20.69448356]
[1757020668885,0.001,4316.3,4316.2,20.56798356]
[1757020670884,0.001,4316.3,4316.2,20.11468356]
[1757020671287,0.001,4316.3,4316.2,20.56798356]
[1757020671696,0.001,4316.3,4316.2,20.11468356]
[1757020671876,0.001,4316.3,4316.2,20.56798356]
[1757020672078,0.001,4316.3,4316.2,23.06448356]
[1757020672270,0.001,4316.4,4316.3,6.10879911]
[1757020672471,0.001,4316.4,4316.3,12.25470708]
[1757020672770,0.001,4316.4,4316.3,12.55510708]
[1757020675375,1.2024,4316.4,4316.3,15.85608356]
[1757020676462,0.001,4316.4,4316.3,16.15648356]
[1757020681306,0.001,4316.4,4316.3,15.85608356]
[1757020681466,1.2024,4316.4,4316.3,15.85608356]
[1757020682390,1.2024,4316.4,4316.3,18.22608356]
[1757020682697,1.2024,4316.4,4316.3,20.49399153]
[1757020684684,0.4547,4316.4,4316.3,20.49399153]
[1757020685206,0.7405,4316.4,4316.3,20.49399153]
[1757020686469,1.2024,4316.4,4316.3,20.49399153]
[1757020686688,1.2024,4316.4,4316.3,13.55608356]
[1757020686914,1.2024,4316.4,4316.3,17.43008356]
[1757020688285,1.2024,4316.4,4316.3,15.06008356]
[1757020691820,1.2024,4316.4,4316.3,12.06008356]
[1757020693685,1.2024,4316.4,4316.3,2.31679911]
[1757020693891,1.2024,4316.4,4316.3,12.05808356]
[1757020694593,1.2024,4316.4,4316.3,12.05808356]
[1757020699429,0.7405,4316.4,4316.3,12.05808356]
[1757020699593,0.4547,4316.4,4316.3,12.05808356]
[1757020701727,0.001,4316.4,4316.3,12.34658356]
[1757020702029,0.001,4316.4,4316.3,14.58265564]
[1757020703695,0.001,4316.4,4316.3,15.37465564]
[1757020703896,0.001,4316.4,4316.3,15.83075564]
[1757020704513,0.001,4316.4,4316.3,18.83075564]
[1757020706007,0.001,4316.4,4316.3,21.20075564]
[1757020706831,0.001,4316.4,4316.3,20.74465564]
[1757020707226,0.001,4316.9,4316.8,3.10853076]
[1757020707398,0.001,4316.9,4316.8,12.84681521]
[1757020707600,0.001,4316.9,4316.8,13.70741521]
[1757020709102,0.001,4316.9,4316.8,13.25131521]
[1757020712428,0.001,4316.9,4316.8,16.70741521]
[1757020712643,0.001,4316.9,4316.8,18.66471221]
[1757020713704,1e-08,4317.3,4317.2,3.10831613]
[1757020714060,1e-08,4317.3,4317.2,20.53888503]
[1757020714218,1e-08,4317.8,4317.7,2.31604789]
[1757020714535,1e-08,4317.8,4317.7,7.33465268]
[1757020714536,0.47280001,4317.8,4317.7,7.33465268]
[1757020714736,1e-08,4317.8,4317.7,13.20393713]
[1757020714937,1e-08,4317.8,4317.7,13.96523713]
[1757020716457,1e-08,4317.8,4317.7,16.96523713]
[1757020716752,1e-08,4317.8,4317.7,17.59582306]
[1757020717413,1e-08,4317.8,4317.7,18.62693835]
[1757020718614,1e-08,4317.8,4317.7,18.17083835]
[1757020718834,1e-08,4317.8,4317.7,18.61573835]
[1757020719438,1e-08,4317.8,4317.7,20.98573835]
[1757020720544,1e-08,4317.8,4317.7,18.61573835]
[1757020720713,1e-08,4317.8,4317.7,18.17083835]
[1757020721155,0.116,4319.7,4318.3,0.792]
[1757020721442,0.52294356,4319.8,4318.9,2.31540438]
[1757020721443,0.4613,4319.0,4318.9,2.31540438]
[1757020721650,0.7743,4319.0,4318.9,6.98840438]
[1757020721824,0.7743,4319.0,4318.9,7.10440438]
[1757020722340,0.7743,4319.0,4318.9,7.8004964]
[1757020723252,1.2518,4319.0,4318.9,7.8004964]
[1757020723425,1.2518,4319.0,4318.9,7.0104964]
[1757020730933,0.313,4319.0,4318.9,7.0104964]
[1757020731141,0.4613,4319.0,4318.9,7.0104964]
[1757020731339,0.7743,4319.0,4318.9,7.0104964]
[1757020731565,0.313,4319.0,4318.9,8.6654615]
[1757020731863,0.4775,4319.4,4319.3,2.31518996]
[1757020732064,0.025,4319.8,4319.7,2.31497557]
[1757020732268,0.025,4319.8,4319.7,6.19397557]
[1757020732465,0.7993,4319.8,4319.7,6.30997557]
[1757020732666,1.2768,4319.8,4319.7,6.30997557]
[1757020733475,0.8155,4319.8,4319.7,6.30997557]
[1757020733766,1.2768,4319.8,4319.7,6.30997557]
[1757020740971,0.338,4319.8,4319.7,6.30997557]
[1757020741172,0.7993,4319.8,4319.7,6.30997557]
[1757020741370,1.2768,4319.8,4319.7,6.30997557]
[1757020742850,1.2778,4319.8,4319.7,6.30997557]
[1757020744977,0.026,4319.8,4319.7,9.0778179]
[1757020745152,0.026,4319.8,4319.7,9.5601179]
[1757020745352,0.026,4319.8,4319.7,9.0778179]
[1757020745896,0.026,4319.8,4319.7,10.0050179]
[1757020746186,0.026,4319.8,4319.7,9.5227179]
[1757020746600,0.026,4319.8,4319.7,10.0050179]
[1757020746775,0.026,4319.8,4319.7,9.5601179]
[1757020746976,0.026,4319.8,4319.7,10.0050179]
[1757020747904,1e-08,4319.8,4319.7,13.0050179]
[1757020748455,1e-08,4319.8,4319.7,12.5581179]
[1757020748690,1e-08,4319.8,4319.7,13.0038179]
[1757020750289,1e-08,4319.8,4319.7,12.0758179]
[1757020750720,1e-08,4319.8,4319.7,12.0748179]
[1757020753782,1e-08,4319.8,4319.7,13.0028179]
[1757020753998,1e-08,4319.8,4319.7,12.0748179]
[1757020754696,1e-08,4319.8,4319.7,11.7791179]
[1757020754877,1e-08,4319.8,4319.7,12.0793179]
[1757020756005,0.28670001,4319.8,4319.7,11.7791179]
[1757020756212,1e-08,4319.8,4319.7,12.0793179]
[1757020757004,1e-08,4319.8,4319.7,11.7791179]
[1757020758312,1e-08,4319.8,4319.7,12.0793179]
[1757020759680,1e-08,4319.8,4319.7,12.5472179]
[1757020759878,1e-08,4319.8,4319.7,13.0073179]
[1757020760102,1e-08,4319.8,4319.7,12.5472179]
[1757020760416,1e-08,4319.8,4319.7,13.0073179]
[1757020761790,1e-08,4319.8,4319.7,12.0793179]
[1757020761995,1e-08,4319.8,4319.7,8.2033179]
[1757020762196,1e-08,4319.8,4319.7,12.0763179]
[1757020762602,1e-08,4319.8,4319.7,11.7761179]
[1757020763508,1e-08,4319.8,4319.7,12.0763179]
[1757020765519,1e-08,4319.8,4319.7,11.7761179]
[1757020766732,0.28670001,4319.8,4319.7,7.9031179]
[1757020767024,0.28670001,4319.8,4319.7,11.7761179]
[1757020768030,1e-08,4319.8,4319.7,11.7761179]
[1757020769328,1e-08,4319.8,4319.7,7.9031179]
[1757020769738,1e-08,4319.8,4319.7,11.7741179]
[1757020769934,1e-08,4319.8,4319.7,7.9031179]
[1757020770233,1e-08,4319.8,4319.7,11.7741179]
[1757020771837,1e-08,4319.8,4319.7,7.9031179]
[1757020772038,1e-08,4319.8,4319.7,11.7731179]
[1757020772537,1e-08,4319.8,4319.7,7.9031179]
[1757020772733,1e-08,4319.8,4319.7,11.7731179]
[1757020773134,1e-08,4319.8,4319.7,12.0733179]
[1757020773639,1e-08,4319.8,4319.7,8.2033179]
[1757020773943,1e-08,4319.8,4319.7,12.0723179]
[1757020774436,1e-08,4319.8,4319.7,8.2033179]
[1757020774634,1e-08,4319.8,4319.7,12.0723179]
[1757020777222,0.4559,4320.1,4319.8,6.10692198]
[1757020777420,0.4559,4320.1,4319.8,14.23293983]
[1757020780236,0.293,4319.9,4319.8,14.23293983]
[1757020780542,1.2345,4319.9,4319.8,14.23293983]
[1757020780938,0.765,4319.9,4319.8,14.23293983]
[1757020781458,0.001,4319.9,4319.8,14.23293983]
[1757020781946,0.001,4319.9,4319.8,14.53933983]
[1757020783048,0.001,4319.9,4319.8,14.23293983]
[1757020783744,0.001,4319.9,4319.8,14.53933983]
[1757020784256,0.001,4319.9,4319.8,20.83444971]
[1757020784465,0.001,4319.9,4319.8,14.53933983]
[1757020786460,0.001,4319.9,4319.8,16.24533983]
[1757020791767,0.473,4320.3,4320.2,3.10670765]
[1757020791970,0.9425,4320.3,4320.2,12.83181753]
[1757020792185,1.2345,4320.3,4320.2,12.94781753]
[1757020792359,1.2345,4320.3,4320.2,13.64369642]
[1757020792561,1.2345,4320.3,4320.2,7.78558654]
[1757020796145,1.2345,4320.3,4320.2,9.49158654]
[1757020797777,1.2345,4320.3,4320.2,4.83258654]
[1757020797976,1.2345,4320.3,4320.2,8.00370765]
[1757020798384,1.2345,4320.3,4320.2,13.86181753]
[1757020801066,0.293,4320.3,4320.2,14.65381753]
[1757020801382,0.293,4320.3,4320.2,16.4202693]
[1757020801579,0.001,4320.3,4320.2,16.4202693]
[1757020801891,0.001,4320.3,4320.2,16.8922693]
[1757020802102,0.001,4320.3,4320.2,17.1986693]
[1757020804906,0.001,4320.3,4320.2,16.8922693]
[1757020805105,0.001,4320.3,4320.2,15.12581753]
[1757020805405,0.001,4320.3,4320.2,11.25881753]
[1757020805613,0.001,4320.3,4320.2,15.12581753]
[1757020805833,0.293,4320.3,4320.2,15.12581753]
[1757020806012,1.2345,4320.3,4320.2,15.12581753]
[1757020810547,1.2345,4320.3,4320.2,10.46681753]
[1757020810845,1.2345,4320.3,4320.2,8.00270765]
[1757020813641,1.2345,4320.3,4320.2,1.822]
[1757020813827,1.73509894,4320.3,4320.2,7.88670765]
[1757020817215,1.2345,4320.3,4320.2,7.88670765]
[1757020817849,1.73458841,4320.3,4320.2,7.88670765]
[1757020818136,1.2345,4320.3,4320.2,7.88670765]
[1757020820532,1.2345,4320.3,4320.2,1.706]
[1757020820733,1.2345,4320.3,4320.2,5.572]
[1757020821633,1.2345,4320.3,4320.2,7.88670765]
[1757020822239,1.73435393,4320.3,4320.2,7.88670765]
[1757020822414,1.2345,4320.3,4320.2,7.88670765]
[1757020823110,1.2345,4320.3,4320.2,5.572]
[1757020823310,1.73433888,4320.3,4320.2,5.572]
[1757020823605,1.73433888,4320.3,4320.2,6.26801128]
[1757020823810,1.73433888,4320.3,4320.2,5.572]
[1757020824005,1.73433888,4320.3,4320.2,6.26804519]
[1757020824260,1.73433888,4320.3,4320.2,1.706]
[1757020824417,1.73433888,4320.3,4320.2,5.572]
[1757020827543,4.04899295,4320.3,4320.2,5.572]
[1757020827718,1.73433888,4320.3,4320.2,5.572]
[1757020828725,4.04899295,4320.3,4320.2,5.572]
[1757020829331,4.04899295,4320.3,4320.2,1.706]
[1757020829648,4.04899295,4320.3,4320.2,5.572]
[1757020830150,1.73433888,4320.3,4320.2,5.572]
[1757020830837,4.04899295,4320.3,4320.2,5.572]
[1757020831242,1.73433888,4320.3,4320.2,5.572]
[1757020831422,1.73433888,4320.3,4320.2,1.706]
[1757020831621,1.73433888,4320.3,4320.2,5.572]
[1757020832119,4.04899295,4320.3,4320.2,5.572]
[1757020832735,4.04899295,4320.3,4320.2,1.706]
[1757020832937,4.04899295,4320.3,4320.2,5.572]